[Event "Fast Chess"]
[Site "ChessKid.com"]
[Date "2020.03.22"]
[Round "3"]
[White "Zerza, Paul"]
[Black "Stiedl, Dominik"]
[Result "0-1"]
[ECO "B07"]
[WhiteElo "684"]
[BlackElo "926"]
[PlyCount "80"]
[EventDate "2020.??.??"]
[TimeControl "600"]
[WhiteClock "0:01:43"]
[BlackClock "0:04:54"]

1. e4 {[%emt 0:00:01]} d6 {[%emt 0:00:05]} 2. Bc4 {[%emt 0:00:06]} e6 {[%emt 0:
00:08]} 3. Nf3 {[%emt 0:00:05]} d5 {[%emt 0:00:05]} 4. exd5 {[%emt 0:00:06]}
exd5 {[%emt 0:00:01]} 5. Bd3 {[%emt 0:00:11]} Qe7+ {[%emt 0:00:07]} 6. Kf1 {
[%emt 0:00:17]} Bg4 {[%emt 0:00:10]} 7. Nc3 {[%emt 0:00:10]} d4 {[%emt 0:00:12]
} 8. Nd5 {[%emt 0:00:04]} Qd6 {[%emt 0:00:07]} 9. Nxc7+ {[%emt 0:00:05]} Qxc7 {
[%emt 0:00:06]} 10. h3 {[%emt 0:00:11]} Bxf3 {[%emt 0:00:03]} 11. Qxf3 {
[%emt 0:00:13]} a5 {[%emt 0:00:14]} 12. Qe2+ {[%emt 0:00:14]} Qe7 {[%emt 0:00:
12]} 13. Qxe7+ {[%emt 0:00:03]} Bxe7 {[%emt 0:00:01]} 14. g4 {[%emt 0:00:03]}
h6 {[%emt 0:00:03]} 15. Kg2 {[%emt 0:00:06]} Nf6 {[%emt 0:00:09]} 16. Re1 {
[%emt 0:00:04]} Nc6 {[%emt 0:00:30]} 17. a3 {[%emt 0:00:10]} O-O {[%emt 0:00:
09]} 18. Be4 {[%emt 0:00:06]} Nxe4 {[%emt 0:00:10]} 19. Rxe4 {[%emt 0:00:12]}
a4 {[%emt 0:00:34]} 20. Re3 {[%emt 0:00:16]} dxe3 {[%emt 0:00:02]} 21. fxe3 {
[%emt 0:00:02]} Ra5 {[%emt 0:00:24]} 22. e4 {[%emt 0:00:16]} Re5 {[%emt 0:00:
14]} 23. Kf3 {[%emt 0:00:11]} Rd8 {[%emt 0:00:21]} 24. Kf4 {[%emt 0:00:10]} g5+
{[%emt 0:00:10]} 25. Kg3 {[%emt 0:00:03]} Rxe4 {[%emt 0:00:13]} 26. Kf3 {
[%emt 0:00:02]} Re1 {[%emt 0:00:26]} 27. Kf2 {[%emt 0:00:07]} Re4 {[%emt 0:00:
06]} 28. Kf3 {[%emt 0:00:02]} Rf4+ {[%emt 0:00:07]} 29. Kg3 {[%emt 0:00:09]}
Rd6 {[%emt 0:00:19]} 30. h4 {[%emt 0:00:06]} Re6 {[%emt 0:00:32]} 31. hxg5 {
[%emt 0:00:03]} Bxg5 {[%emt 0:00:02]} 32. Kh3 {[%emt 0:00:19]} Rf3+ {[%emt 0:
00:04]} 33. Kg2 {[%emt 0:00:08]} Ref6 {[%emt 0:00:16]} 34. c3 {[%emt 0:00:06]}
Rf2+ {[%emt 0:00:33]} 35. Kg1 {[%emt 0:00:05]} R6f3 {[%emt 0:00:17]} 36. d4 {
[%emt 0:00:06]} Rg3+ {[%emt 0:00:08]} 37. Kh1 {[%emt 0:00:03]} Rh3+ {[%emt 0:
00:21]} 38. Kg1 {[%emt 0:00:03]} Rhh2 {[%emt 0:00:08]} 39. Bd2 {[%emt 0:00:18]}
Bxd2 {[%emt 0:00:17]} 40. Rf1 {[%emt 0:00:05]} Rfg2# {[%emt 0:00:13]
MadCuteMatter won by checkmate} 0-1

[Event "Fast Chess"]
[Site "ChessKid.com"]
[Date "2020.03.23"]
[Round "2"]
[White "Horky, Florian"]
[Black "Zerza, Paul"]
[Result "0-1"]
[ECO "B01"]
[WhiteElo "802"]
[BlackElo "801"]
[Annotator "Auf Figuren aufpassen"]
[PlyCount "102"]
[EventDate "2020.??.??"]
[TimeControl "600"]
[WhiteClock "0:02:20"]
[BlackClock "0:00:02"]

1. e4 {[%emt 0:00:01]} d5 {[%emt 0:00:00]} 2. e5 {[%emt 0:00:06]} e6 {[%emt 0:
00:06]} 3. b3 {[%emt 0:00:12]} Nc6 {[%emt 0:00:02]} 4. Bb2 {[%emt 0:00:05]} Bd7
{[%emt 0:00:05]} 5. Qe2 {[%emt 0:00:08]} Qb8 {[%emt 0:00:02]} 6. Ba3 {[%emt 0:
00:11]} Qd8 {[%emt 0:00:00]} 7. Bxf8 {[%emt 0:00:13]} Qb8 {[%emt 0:00:00]} 8.
Ba3 {[%emt 0:00:10]} Nd4 {[%emt 0:00:17]} 9. Qd3 {[%emt 0:00:12]} Nf5 {[%emt 0:
00:11]} 10. Nc3 {[%emt 0:00:09]} d4 {[%emt 0:00:08]} 11. Ne4 {[%emt 0:00:10]}
Ngh6 {[%emt 0:00:14]} 12. Be2 {[%emt 0:00:08]} Bc6 {[%emt 0:00:07]} 13. Bh5 {
[%emt 0:00:06]} Bxe4 {[%emt 0:00:23]} 14. Qxe4 {[%emt 0:00:15]} g6 {[%emt 0:00:
14]} 15. Bg4 {[%emt 0:00:06]} Qd8 {[%emt 0:00:28]} 16. O-O-O {[%emt 0:00:09]}
f6 {[%emt 0:00:17]} 17. c3 {[%emt 0:00:05]} d3 {[%emt 0:00:10]} 18. Nf3 {
[%emt 0:00:15]} Kf7 {[%emt 0:00:23]} 19. Nd4 {[%emt 0:00:06]} Re8 {[%emt 0:00:
21]} 20. Nxf5 {[%emt 0:00:06]} gxf5 {[%emt 0:00:17]} 21. Qf4 {[%emt 0:04:10]}
Nxg4 {[%emt 0:00:08]} 22. f3 {[%emt 0:00:04]} Nf2 {[%emt 0:00:04]} 23. Rhf1 {
[%emt 0:00:05]} Nxd1 {[%emt 0:00:03]} 24. Kxd1 {[%emt 0:00:05]} fxe5 {[%emt 0:
00:12]} 25. Qxe5 {[%emt 0:00:04]} Qd6 $4 {[%emt 0:00:09]} 26. f4 $4 {[%emt 0:
00:11]} Qd8 {[%emt 0:00:03]} 27. c4 {[%emt 0:00:04]} b6 {[%emt 0:00:20]} 28.
Kc1 {[%emt 0:00:02]} c5 {[%emt 0:00:04]} 29. Rf3 {[%emt 0:00:12]} Qd7 {[%emt 0:
00:09]} 30. Rh3 {[%emt 0:00:05]} Rh8 {[%emt 0:00:12]} 31. b4 {[%emt 0:00:02]}
Rac8 {[%emt 0:00:05]} 32. bxc5 {[%emt 0:00:03]} bxc5 {[%emt 0:00:03]} 33. Bxc5
{[%emt 0:00:04]} Qc7 {[%emt 0:00:03]} 34. Bd4 {[%emt 0:00:15]} Qd8 {[%emt 0:00:
10]} 35. Bxa7 {[%emt 0:00:07]} Rxc4+ {[%emt 0:00:12]} 36. Kb1 {[%emt 0:00:07]}
Qc8 {[%emt 0:00:14]} 37. Kb2 {[%emt 0:00:06]} Rc2+ {[%emt 0:00:04]} 38. Kb3 {
[%emt 0:00:06]} Qb7+ {[%emt 0:00:12]} 39. Ka3 {[%emt 0:00:25]} Qxa7+ {[%emt 0:
00:09]} 40. Kb3 {[%emt 0:00:06]} Qxa2+ {[%emt 0:00:07]} 41. Kb4 {[%emt 0:00:06]
} Qc4+ {[%emt 0:00:04]} 42. Ka5 {[%emt 0:00:07]} Ra2+ {[%emt 0:00:15]} 43. Kb6
{[%emt 0:00:05]} Ra7 {[%emt 0:00:18]} 44. Kxa7 {[%emt 0:00:04]} Qa4+ {[%emt 0:
00:12]} 45. Kb7 {[%emt 0:00:04]} Qa8+ {[%emt 0:00:04]} 46. Kb6 {[%emt 0:00:03]}
Rb8+ {[%emt 0:00:04]} 47. Kc7 {[%emt 0:00:08]} Qb7+ {[%emt 0:00:02]} 48. Kd6 {
[%emt 0:00:03]} Rd8+ {[%emt 0:00:02]} 49. Kc5 {[%emt 0:00:02]} Qc8+ {[%emt 0:
00:04]} 50. Kb4 {[%emt 0:00:02]} Qb7+ {[%emt 0:00:05]} 51. Kc5 {[%emt 0:00:01]}
Qc7+ {[%emt 0:00:03] MeekRoseOyster won on time} 0-1

[Event "Fast Chess"]
[Site "ChessKid.com"]
[Date "2020.03.23"]
[Round "3"]
[White "Zerza, Michael"]
[Black "Horky, Florian"]
[Result "1-0"]
[ECO "D00"]
[WhiteElo "939"]
[BlackElo "763"]
[PlyCount "65"]
[EventDate "2020.??.??"]
[TimeControl "600"]
[WhiteClock "0:04:40"]
[BlackClock "0:04:54"]

1. d4 {[%emt 0:00:02]} d5 {[%emt 0:00:07]} 2. Bg5 {[%emt 0:00:06]} Be6 {
[%emt 0:00:09]} 3. e3 {[%emt 0:00:08]} b6 {[%emt 0:01:40]} 4. Bb5+ {[%emt 0:00:
09]} c6 {[%emt 0:00:05]} 5. Bxc6+ {[%emt 0:00:06]} Nxc6 {[%emt 0:00:03]} 6. Nc3
{[%emt 0:00:11]} Qd6 {[%emt 0:00:06]} 7. Bf4 {[%emt 0:00:06]} Qb4 {[%emt 0:00:
08]} 8. Qc1 {[%emt 0:00:08]} Nh6 {[%emt 0:00:04]} 9. Bxh6 {[%emt 0:00:06]} gxh6
{[%emt 0:00:03]} 10. Nge2 {[%emt 0:00:07]} Bg7 {[%emt 0:00:04]} 11. O-O {
[%emt 0:00:03]} O-O-O {[%emt 0:00:08]} 12. a3 {[%emt 0:00:04]} Qa5 {[%emt 0:00:
07]} 13. b4 {[%emt 0:00:05]} Qa6 {[%emt 0:00:06]} 14. a4 {[%emt 0:00:07]} Bf6 {
[%emt 0:00:19]} 15. b5 {[%emt 0:00:09]} Qa5 {[%emt 0:00:05]} 16. bxc6 {[%emt 0:
00:05]} Rhg8 {[%emt 0:00:04]} 17. h3 {[%emt 0:00:20]} Rg7 {[%emt 0:00:05]} 18.
Nb5 {[%emt 0:00:23]} Rdg8 {[%emt 0:00:10]} 19. Ng3 {[%emt 0:00:08]} Bg4 {
[%emt 0:00:16]} 20. hxg4 {[%emt 0:00:05]} Bh4 {[%emt 0:00:10]} 21. Nf5 {
[%emt 0:00:14]} f6 {[%emt 0:00:02]} 22. Nxh4 {[%emt 0:00:03]} e5 {[%emt 0:00:
04]} 23. dxe5 {[%emt 0:00:08]} fxe5 {[%emt 0:00:04]} 24. c4 {[%emt 0:00:11]}
dxc4 {[%emt 0:00:09]} 25. Qxc4 {[%emt 0:00:06]} Rxg4 {[%emt 0:00:07]} 26. Qe6+
{[%emt 0:00:04]} Kb8 {[%emt 0:00:10]} 27. Qxe5+ {[%emt 0:00:12]} Kc8 {[%emt 0:
00:16]} 28. Nd6+ {[%emt 0:00:09]} Kc7 {[%emt 0:00:05]} 29. Qe7+ {[%emt 0:00:14]
} Kxc6 {[%emt 0:00:03]} 30. Rfc1+ {[%emt 0:00:08]} Kd5 {[%emt 0:00:04]} 31.
Rd1+ {[%emt 0:00:37]} Kc6 {[%emt 0:00:09]} 32. Rac1+ {[%emt 0:00:12]} Qc5 {
[%emt 0:00:09]} 33. Qb7# {[%emt 0:00:11] OpenWorkingLeopard won by checkmate}
1-0

[Event "Fast Chess"]
[Site "ChessKid.com"]
[Date "2020.03.26"]
[Round "1"]
[White "Varahram, Armin"]
[Black "Gross, Lukas"]
[Result "0-1"]
[ECO "B06"]
[WhiteElo "712"]
[BlackElo "1023"]
[PlyCount "62"]
[EventDate "2020.??.??"]
[TimeControl "600"]
[WhiteClock "0:05:26"]
[BlackClock "0:04:35"]

1. e4 {[%emt 0:00:04]} g6 {[%emt 0:00:02]} 2. Bb5 {[%emt 0:00:05]} c6 {[%emt 0:
00:06]} 3. Bd3 {[%emt 0:00:09]} Bg7 {[%emt 0:00:04]} 4. c4 {[%emt 0:00:02]} Nh6
{[%emt 0:00:05]} 5. Nh3 {[%emt 0:00:05]} O-O {[%emt 0:00:03]} 6. O-O {[%emt 0:
00:11]} e6 {[%emt 0:00:04]} 7. Qa4 {[%emt 0:00:09]} a6 {[%emt 0:00:23]} 8. Nc3
{[%emt 0:00:11]} b5 {[%emt 0:00:10]} 9. cxb5 {[%emt 0:00:10]} cxb5 {[%emt 0:00:
07]} 10. Nxb5 {[%emt 0:00:07]} Nc6 {[%emt 0:00:20]} 11. Nf4 {[%emt 0:00:21]}
Bb7 {[%emt 0:00:05]} 12. Nxe6 {[%emt 0:00:04]} dxe6 {[%emt 0:00:14]} 13. Qd4 {
[%emt 0:00:10]} Bxd4 {[%emt 0:00:05]} 14. Nxd4 {[%emt 0:00:12]} Nxd4 {[%emt 0:
00:06]} 15. Re1 {[%emt 0:00:08]} Nc2 {[%emt 0:00:04]} 16. Bxc2 {[%emt 0:00:10]}
Rc8 {[%emt 0:00:09]} 17. Ba4 {[%emt 0:00:09]} Rc4 {[%emt 0:00:20]} 18. b3 {
[%emt 0:00:10]} Rc8 {[%emt 0:00:06]} 19. d4 {[%emt 0:00:13]} Bc6 {[%emt 0:00:
05]} 20. Bf4 {[%emt 0:00:26]} Bxa4 {[%emt 0:00:16]} 21. bxa4 {[%emt 0:00:09]}
Rc4 {[%emt 0:00:05]} 22. Rac1 {[%emt 0:00:07]} Rxd4 {[%emt 0:00:12]} 23. a3 {
[%emt 0:00:27]} Rxa4 {[%emt 0:00:06]} 24. Ra1 {[%emt 0:00:18]} Qd4 {[%emt 0:00:
13]} 25. Bxh6 {[%emt 0:00:07]} Rc8 {[%emt 0:00:05]} 26. Red1 {[%emt 0:00:09]}
Qc4 {[%emt 0:00:17]} 27. Rdc1 {[%emt 0:00:07]} Qxc1+ {[%emt 0:00:10]} 28. Bxc1
{[%emt 0:00:10]} Rac4 {[%emt 0:00:10]} 29. Bh6 {[%emt 0:00:05]} f6 {[%emt 0:00:
13]} 30. Rc1 {[%emt 0:00:21]} Rxc1+ {[%emt 0:00:05]} 31. Bxc1 {[%emt 0:00:09]}
Rxc1# {[%emt 0:00:04] RosyPopularArm won by checkmate} 0-1

[Event "Fast Chess"]
[Site "ChessKid.com"]
[Date "2020.03.26"]
[Round "2"]
[White "Gross, Lukas"]
[Black "Zerza, Michael"]
[Result "1-0"]
[ECO "A05"]
[WhiteElo "1029"]
[BlackElo "876"]
[PlyCount "81"]
[EventDate "2020.??.??"]
[TimeControl "600"]
[WhiteClock "0:04:04"]
[BlackClock "0:04:19"]

1. g3 {[%emt 0:00:00]} e5 {[%emt 0:00:04]} 2. Bg2 {[%emt 0:00:03]} d6 {[%emt 0:
00:09]} 3. Nf3 {[%emt 0:00:07]} Nf6 {[%emt 0:00:15]} 4. O-O {[%emt 0:00:10]}
Bd7 {[%emt 0:00:10]} 5. b3 {[%emt 0:00:06]} Nc6 {[%emt 0:00:08]} 6. Bb2 {
[%emt 0:00:09]} Be7 {[%emt 0:00:13]} 7. Na3 {[%emt 0:00:15]} O-O {[%emt 0:00:
04]} 8. d4 {[%emt 0:00:11]} exd4 {[%emt 0:00:05]} 9. Nxd4 {[%emt 0:00:04]} Nxd4
{[%emt 0:00:12]} 10. Bxd4 {[%emt 0:00:04]} c6 {[%emt 0:00:06]} 11. h3 {[%emt 0:
00:17]} d5 {[%emt 0:00:04]} 12. Nb1 {[%emt 0:00:10]} Re8 {[%emt 0:00:16]} 13.
b4 {[%emt 0:00:05]} Bxb4 {[%emt 0:00:17]} 14. c3 {[%emt 0:00:27]} Bd6 {[%emt 0:
00:10]} 15. f4 {[%emt 0:00:11]} Ne4 {[%emt 0:00:19]} 16. Rf3 {[%emt 0:00:22]}
Qc8 {[%emt 0:00:14]} 17. Nd2 {[%emt 0:00:03]} Nxd2 {[%emt 0:00:11]} 18. Qxd2 {
[%emt 0:00:05]} Bxh3 {[%emt 0:00:15]} 19. Bxh3 {[%emt 0:00:13]} Qxh3 {[%emt 0:
00:05]} 20. e3 {[%emt 0:00:15]} b6 {[%emt 0:00:17]} 21. Qg2 {[%emt 0:00:26]} c5
{[%emt 0:00:05]} 22. Qxh3 {[%emt 0:00:03]} cxd4 {[%emt 0:00:11]} 23. exd4 {
[%emt 0:00:04]} Ba3 {[%emt 0:00:18]} 24. Qd7 {[%emt 0:00:23]} Bb2 {[%emt 0:00:
07]} 25. Rb1 {[%emt 0:00:04]} Bxc3 {[%emt 0:00:07]} 26. Rxc3 {[%emt 0:00:06]}
b5 {[%emt 0:00:10]} 27. Rbc1 {[%emt 0:00:27]} b4 {[%emt 0:00:03]} 28. Rc8 {
[%emt 0:00:07]} Raxc8 {[%emt 0:00:09]} 29. Rxc8 {[%emt 0:00:04]} g6 {[%emt 0:
00:05]} 30. Rxe8+ {[%emt 0:00:04]} Kg7 {[%emt 0:00:03]} 31. Qxd5 {[%emt 0:00:
05]} a5 {[%emt 0:00:11]} 32. Qxa5 {[%emt 0:00:06]} b3 {[%emt 0:00:05]} 33. axb3
{[%emt 0:00:05]} h5 {[%emt 0:00:04]} 34. b4 {[%emt 0:00:03]} f6 {[%emt 0:00:07]
} 35. b5 {[%emt 0:00:02]} g5 {[%emt 0:00:04]} 36. b6 {[%emt 0:00:02]} Kf7 {
[%emt 0:00:07]} 37. Ra8 {[%emt 0:00:05]} Ke7 {[%emt 0:00:04]} 38. b7 {[%emt 0:
00:01]} Kd7 {[%emt 0:00:04]} 39. b8=Q {[%emt 0:00:02]} h4 {[%emt 0:00:11]} 40.
Qa6 {[%emt 0:00:04]} Ke7 {[%emt 0:00:08]} 41. Qbb7# {[%emt 0:00:02]
RosyPopularArm won by checkmate} 1-0

[Event "Fast Chess"]
[Site "ChessKid.com"]
[Date "2020.03.26"]
[Round "3"]
[White "Hlinka, Patricia"]
[Black "Gross, Lukas"]
[Result "0-1"]
[ECO "B06"]
[WhiteElo "985"]
[BlackElo "1037"]
[PlyCount "88"]
[EventDate "2020.??.??"]
[TimeControl "600"]
[WhiteClock "0:03:12"]
[BlackClock "0:00:33"]

1. d4 {[%emt 0:00:00]} g6 {[%emt 0:00:04]} 2. e4 {[%emt 0:00:15]} Bg7 {[%emt 0:
00:06]} 3. d5 {[%emt 0:00:09]} Nf6 {[%emt 0:00:07]} 4. a4 {[%emt 0:00:12]} Nxe4
{[%emt 0:00:03]} 5. f3 {[%emt 0:00:08]} Nf6 {[%emt 0:00:03]} 6. f4 {[%emt 0:00:
08]} O-O {[%emt 0:00:04]} 7. f5 {[%emt 0:00:03]} gxf5 {[%emt 0:00:03]} 8. a5 {
[%emt 0:00:21]} c6 {[%emt 0:00:03]} 9. dxc6 {[%emt 0:00:04]} bxc6 {[%emt 0:00:
04]} 10. a6 {[%emt 0:00:03]} Nxa6 {[%emt 0:00:09]} 11. b3 {[%emt 0:00:15]} Nb4
{[%emt 0:00:06]} 12. c3 {[%emt 0:00:05]} Nbd5 {[%emt 0:00:07]} 13. c4 {[%emt 0:
00:03]} Nc7 {[%emt 0:00:05]} 14. b4 {[%emt 0:00:05]} Na6 {[%emt 0:00:02]} 15.
b5 {[%emt 0:00:03]} Nb8 {[%emt 0:00:03]} 16. bxc6 {[%emt 0:00:03]} dxc6 {
[%emt 0:00:01]} 17. Be2 {[%emt 0:00:17]} f4 {[%emt 0:00:04]} 18. Qxd8 {[%emt 0:
00:06]} Rxd8 {[%emt 0:00:03]} 19. Ra5 {[%emt 0:00:35]} Bh6 {[%emt 0:00:26]} 20.
Bd3 {[%emt 0:00:23]} a6 {[%emt 0:00:02]} 21. Nf3 {[%emt 0:00:17]} Rxd3 {
[%emt 0:00:09]} 22. Ng1 {[%emt 0:00:09]} Rb3 {[%emt 0:00:13]} 23. Na3 {[%emt 0:
00:08]} Nbd7 {[%emt 0:00:25]} 24. Bd2 {[%emt 0:00:40]} c5 {[%emt 0:00:22]} 25.
h4 {[%emt 0:00:16]} Rab8 {[%emt 0:00:12]} 26. Ne2 {[%emt 0:00:18]} e5 {[%emt 0:
00:33]} 27. Bc3 {[%emt 0:00:41]} Nb6 {[%emt 0:00:47]} 28. Kd2 {[%emt 0:01:17]}
Bg4 {[%emt 0:00:11]} 29. Rb1 {[%emt 0:00:17]} Rxb1 {[%emt 0:00:33]} 30. Nxb1 {
[%emt 0:00:05]} Nxc4+ {[%emt 0:00:06]} 31. Kd3 {[%emt 0:00:08]} Nxa5 {[%emt 0:
00:03]} 32. Nd2 {[%emt 0:00:08]} Bxe2+ {[%emt 0:00:14]} 33. Kxe2 {[%emt 0:00:
04]} Nb3 {[%emt 0:00:09]} 34. Nxb3 {[%emt 0:00:05]} Rxb3 {[%emt 0:00:03]} 35.
Bxe5 {[%emt 0:00:07]} Re3+ {[%emt 0:00:15]} 36. Kf2 {[%emt 0:00:17]} Rxe5 {
[%emt 0:00:02]} 37. g3 {[%emt 0:00:08]} fxg3+ {[%emt 0:00:05]} 38. Kxg3 {
[%emt 0:00:03]} Nh5+ {[%emt 0:00:09]} 39. Kg4 {[%emt 0:00:04]} Nf6+ {[%emt 0:
00:03]} 40. Kf3 {[%emt 0:00:12]} c4 {[%emt 0:00:10]} 41. Kg3 {[%emt 0:00:16]}
c3 {[%emt 0:00:10]} 42. h5 {[%emt 0:00:06]} Nxh5+ {[%emt 0:00:05]} 43. Kg4 {
[%emt 0:00:12]} Nf6+ {[%emt 0:00:03]} 44. Kf3 {[%emt 0:00:12]} c2 {[%emt 0:00:
02] RosyPopularArm won on time} 0-1

[Event "Fast Chess"]
[Site "ChessKid.com"]
[Date "2020.03.26"]
[Round "3"]
[White "Zerza, Michael"]
[Black "Varahram, Armin"]
[Result "1/2-1/2"]
[ECO "D00"]
[WhiteElo "869"]
[BlackElo "773"]
[PlyCount "109"]
[EventDate "2020.??.??"]
[TimeControl "600"]
[WhiteClock "0:00:05"]
[BlackClock "0:02:53"]

1. d4 {[%emt 0:00:01]} d5 {[%emt 0:00:03]} 2. Bg5 {[%emt 0:00:04]} Nc6 {
[%emt 0:00:18]} 3. Nc3 {[%emt 0:00:08]} Bg4 {[%emt 0:00:12]} 4. f3 {[%emt 0:00:
11]} Qd6 {[%emt 0:00:30]} 5. fxg4 {[%emt 0:00:15]} Qg6 {[%emt 0:00:08]} 6. h4 {
[%emt 0:00:08]} h6 {[%emt 0:00:32]} 7. Nh3 {[%emt 0:00:13]} f5 {[%emt 0:00:11]}
8. gxf5 {[%emt 0:00:06]} Qxf5 {[%emt 0:00:18]} 9. e3 {[%emt 0:00:18]} hxg5 {
[%emt 0:00:21]} 10. hxg5 {[%emt 0:00:06]} Nf6 {[%emt 0:00:13]} 11. Nf4 {
[%emt 0:00:14]} Qxg5 {[%emt 0:00:25]} 12. Qd3 {[%emt 0:00:13]} e5 {[%emt 0:00:
18]} 13. dxe5 {[%emt 0:00:11]} Qxe5 {[%emt 0:00:09]} 14. Ng6 {[%emt 0:00:16]}
Qg5 {[%emt 0:00:15]} 15. Nxh8 {[%emt 0:00:03]} O-O-O {[%emt 0:00:24]} 16. Ng6 {
[%emt 0:00:08]} Ne7 {[%emt 0:00:08]} 17. Nf4 {[%emt 0:00:14]} Qxf4 {[%emt 0:00:
09]} 18. exf4 {[%emt 0:00:05]} Rd6 {[%emt 0:00:47]} 19. f5 {[%emt 0:00:02]} g6
{[%emt 0:00:10]} 20. fxg6 {[%emt 0:00:06]} b6 {[%emt 0:00:18]} 21. Qf5+ {
[%emt 0:00:13]} Nxf5 {[%emt 0:00:08]} 22. Rh8 {[%emt 0:00:17]} Rd8 {[%emt 0:00:
12]} 23. Rxf8 {[%emt 0:00:05]} Rxf8 {[%emt 0:00:11]} 24. g7 {[%emt 0:00:05]}
Nxg7 {[%emt 0:00:03]} 25. Nb5 {[%emt 0:00:11]} Kb7 {[%emt 0:00:13]} 26. Nd4 {
[%emt 0:00:17]} Ng4 {[%emt 0:00:06]} 27. Be2 {[%emt 0:00:14]} Nh2 {[%emt 0:00:
08]} 28. g4 {[%emt 0:00:07]} Rf4 {[%emt 0:00:16]} 29. g5 {[%emt 0:00:04]} c5 {
[%emt 0:00:23]} 30. Ne6 {[%emt 0:00:10]} Nxe6 {[%emt 0:00:11]} 31. g6 {[%emt 0:
00:11]} Rh4 {[%emt 0:00:14]} 32. Bd3 {[%emt 0:00:10]} Rg4 {[%emt 0:00:11]} 33.
Bf5 {[%emt 0:00:04]} Nf4 {[%emt 0:00:15]} 34. Bxg4 {[%emt 0:00:08]} Nxg4 {
[%emt 0:00:04]} 35. g7 {[%emt 0:00:04]} Nh6 {[%emt 0:00:07]} 36. Rd1 {[%emt 0:
00:09]} Ne6 {[%emt 0:00:12]} 37. g8=Q {[%emt 0:00:09]} Nxg8 {[%emt 0:00:08]}
38. Rxd5 {[%emt 0:00:08]} Kc6 {[%emt 0:00:09]} 39. Rd8 {[%emt 0:00:05]} Nxd8 {
[%emt 0:00:06]} 40. c3 {[%emt 0:00:10]} Ne6 {[%emt 0:00:04]} 41. a4 {[%emt 0:
00:02]} Nf4 {[%emt 0:00:03]} 42. b4 {[%emt 0:00:06]} cxb4 {[%emt 0:00:02]} 43.
cxb4 {[%emt 0:00:02]} Nd5 {[%emt 0:00:03]} 44. b5+ {[%emt 0:00:08]} Kb7 {
[%emt 0:00:02]} 45. Kd2 {[%emt 0:00:07]} Nge7 {[%emt 0:00:05]} 46. Kd3 {
[%emt 0:00:04]} Nc6 {[%emt 0:00:05]} 47. bxc6+ {[%emt 0:00:02]} Kxc6 {[%emt 0:
00:03]} 48. Kc4 {[%emt 0:00:02]} b5+ {[%emt 0:00:05]} 49. axb5+ {[%emt 0:00:05]
} Kb6 {[%emt 0:00:08]} 50. Kxd5 {[%emt 0:00:15]} Kxb5 {[%emt 0:00:01]} 51. Kd4
{[%emt 0:00:04]} a6 {[%emt 0:00:01]} 52. Kc3 {[%emt 0:00:03]} a5 {[%emt 0:00:
00]} 53. Kb2 {[%emt 0:00:02]} a4 {[%emt 0:00:00]} 54. Ka3 {[%emt 0:00:02]} Kc4
{[%emt 0:00:08]} 55. Kxa4 {[%emt 0:00:03] Game drawn - insufficient material}
1/2-1/2

[Event "Fast Chess"]
[Site "ChessKid.com"]
[Date "2020.03.30"]
[Round "1"]
[White "Hlinka, Patricia"]
[Black "Burgsteiner, Konstantin"]
[Result "1-0"]
[ECO "C00"]
[WhiteElo "1069"]
[BlackElo "1138"]
[PlyCount "109"]
[EventDate "2020.??.??"]
[TimeControl "600"]
[WhiteClock "0:04:14"]
[BlackClock "0:05:07"]

1. e4 {[%emt 0:00:00]} e6 {[%emt 0:00:02]} 2. Nf3 {[%emt 0:00:08]} b6 {[%emt 0:
00:05]} 3. g4 {[%emt 0:00:04]} Ba6 {[%emt 0:00:04]} 4. Bxa6 {[%emt 0:00:04]}
Nxa6 {[%emt 0:00:03]} 5. Qe2 {[%emt 0:00:04]} Qf6 {[%emt 0:00:06]} 6. Qxa6 {
[%emt 0:00:05]} Bc5 {[%emt 0:00:16]} 7. Qb7 {[%emt 0:00:10]} Qxf3 {[%emt 0:00:
12]} 8. Qxa8+ {[%emt 0:00:11]} Ke7 {[%emt 0:00:07]} 9. Rf1 {[%emt 0:00:08]} Qg2
{[%emt 0:00:05]} 10. b4 {[%emt 0:00:27]} Bd4 {[%emt 0:00:06]} 11. c3 {[%emt 0:
00:06]} Be5 {[%emt 0:00:06]} 12. a3 {[%emt 0:00:04]} Qxh2 {[%emt 0:00:05]} 13.
Ra2 {[%emt 0:00:12]} Bf4 {[%emt 0:00:14]} 14. Rb2 {[%emt 0:00:14]} Nf6 {
[%emt 0:00:16]} 15. d3 {[%emt 0:00:08]} Nxg4 {[%emt 0:00:05]} 16. f3 {[%emt 0:
00:02]} Qg3+ {[%emt 0:00:06]} 17. Kd1 {[%emt 0:00:14]} Nh2 {[%emt 0:00:04]} 18.
Bxf4 {[%emt 0:00:04]} Qxf4 {[%emt 0:00:07]} 19. Qxh8 {[%emt 0:00:06]} Nxf1 {
[%emt 0:00:06]} 20. Qxh7 {[%emt 0:00:03]} Qxf3+ {[%emt 0:00:05]} 21. Re2 {
[%emt 0:00:10]} Qxd3+ {[%emt 0:00:06]} 22. Rd2 {[%emt 0:00:06]} Qxb1+ {[%emt 0:
00:03]} 23. Ke2 {[%emt 0:00:04]} Qa1 {[%emt 0:00:14]} 24. Qh1 {[%emt 0:00:05]}
Qc1 {[%emt 0:00:08]} 25. Qxf1 {[%emt 0:00:03]} Qxc3 {[%emt 0:00:05]} 26. Qf3 {
[%emt 0:00:04]} Qe5 {[%emt 0:00:09]} 27. Qd3 {[%emt 0:00:19]} Qh2+ {[%emt 0:00:
06]} 28. Ke3 {[%emt 0:00:03]} Qh3+ {[%emt 0:00:05]} 29. Kd4 {[%emt 0:00:04]}
Qh8 {[%emt 0:00:08]} 30. Ke3 {[%emt 0:00:03]} g6 {[%emt 0:00:05]} 31. Qxd7+ {
[%emt 0:00:04]} Kf6 {[%emt 0:00:05]} 32. Qd4+ {[%emt 0:00:07]} Kg5 {[%emt 0:00:
04]} 33. Qxh8 {[%emt 0:00:01]} f5 {[%emt 0:00:07]} 34. exf5 {[%emt 0:00:02]}
gxf5 {[%emt 0:00:02]} 35. Qg8+ {[%emt 0:00:04]} Kf6 {[%emt 0:00:07]} 36. a4 {
[%emt 0:00:12]} a5 {[%emt 0:00:09]} 37. bxa5 {[%emt 0:00:02]} bxa5 {[%emt 0:00:
03]} 38. Qf8+ {[%emt 0:00:01]} Ke5 {[%emt 0:00:04]} 39. Qc5+ {[%emt 0:00:02]}
Kf6 {[%emt 0:00:08]} 40. Qxa5 {[%emt 0:00:02]} e5 {[%emt 0:00:06]} 41. Qxc7 {
[%emt 0:00:02]} f4+ {[%emt 0:00:04]} 42. Kf3 {[%emt 0:00:03]} Kf5 {[%emt 0:00:
05]} 43. a5 {[%emt 0:00:02]} e4+ {[%emt 0:00:04]} 44. Kg2 {[%emt 0:00:02]} f3+
{[%emt 0:00:04]} 45. Kf2 {[%emt 0:00:07]} Kg4 {[%emt 0:00:10]} 46. Qg7+ {
[%emt 0:00:04]} Kf4 {[%emt 0:00:03]} 47. Qf7+ {[%emt 0:00:02]} Kg4 {[%emt 0:00:
04]} 48. Qxf3+ {[%emt 0:00:02]} exf3 {[%emt 0:00:04]} 49. a6 {[%emt 0:00:02]}
Kf4 {[%emt 0:00:05]} 50. a7 {[%emt 0:00:02]} Kg4 {[%emt 0:00:15]} 51. a8=Q {
[%emt 0:00:01]} Kf4 {[%emt 0:00:09]} 52. Qxf3+ {[%emt 0:00:01]} Kg5 {[%emt 0:
00:04]} 53. Rd1 {[%emt 0:00:03]} Kg6 {[%emt 0:00:06]} 54. Rg1+ {[%emt 0:00:01]}
Kh6 {[%emt 0:00:06]} 55. Qh1# {[%emt 0:00:08] NeatBouncyCone won by checkmate}
1-0